[Event "Szansa Chess Open 2022"]
[Site "Warsaw"]
[Date "2022.09.18"]
[Round "11.10"]
[White "Smieszek, Wojciech"]
[Black "Siekanska, Maria"]
[Result "1-0"]
[ECO "B90"]
[WhiteElo "2082"]
[BlackElo "2029"]
[Annotator "TA"]
[PlyCount "93"]
[EventDate "2022.09.17"]
[EventCountry "POL"]
[SourceTitle "playchess.com"]
[Source "ChessBase"]
[SourceQuality "1"]
[TimeControl "900+10"]

{[%evp 18,93,21,4,37,8,21,25,44,38,37,18,35,0,-9,-16,-15,-16,-15,-22,-30,-73,-54,-93,-86,-129,62,-69,66,66,59,0,11,12,10,10,10,12,13,8,27,0,0,0,0,0,11,12,16,8,10,8,8,12,37,23,32,46,185,189,218,123,165,174,222,203,261,297,296,283,322,314,380,354,406,364,29998,29999]} 1. e4 {[%emt 0:00:02]} c5 {[%emt 0:00:01]} 2. Nf3 {[%emt 0:00:02]} d6 {[%emt 0:00:01]} 3. d4 {[%emt 0:00:00]} cxd4 {[%emt 0:00:01]} 4. Nxd4 {[%emt 0:00:02]} Nf6 {[%emt 0:00:01]} 5. Nc3 {[%emt 0:00:01]} a6 {[%emt 0:00:01]} 6. Be3 {[%emt 0:00:22]} e6 {[%emt 0:00:08]} 7. Bd3 {[%emt 0:00:04]} Be7 {[%emt 0:00:13]} 8. O-O {[%emt 0:00:02]} O-O {[%emt 0:00:13]} 9. f4 {[%emt 0:00:04]} Nc6 {[%emt 0:00:42]} 10. Qf3 {[%emt 0:00:13]} Nb4 {[%emt 0:02:36] B80: Sicilian Scheveningen: 6 g3 and 6 Be3, including English Attack.} 11. Rae1 {[%emt 0:01:39]} Nxd3 {[%emt 0:00:36]} (11... e5 {looks sharper.} 12. Nf5 Bxf5 13. exf5 Re8) 12. cxd3 {[%emt 0:00:01]} Qc7 {[%emt 0:00:20] [#] White has an edge.} 13. Rc1 $146 {[%emt 0:00:32]} ({Predecessor:} 13. g4 Nd7 14. g5 Rb8 15. Qh5 Rd8 16. f5 Ne5 17. Re2 g6 18. Qh3 Bf8 19. Rf4 {1-0 (30) Sailer,H (1933)-Peleikis,H (2063) Magdeburg 2015}) 13... Qd8 {[%emt 0:01:21]} 14. Qg3 {[%emt 0:01:00]} Re8 {[%emt 0:01:11]} 15. Rf2 {[%emt 0:02:32]} e5 {[%emt 0:01:08]} 16. fxe5 {[%emt 0:00:29]} dxe5 {[%emt 0:00:14]} 17. Nf5 {[%emt 0:00:17]} ({But not} 17. Qxe5 $2 Ng4 18. Qh5 Nxe3 $19) 17... Bxf5 {[%emt 0:00:11]} 18. Rxf5 {[%emt 0:00:02]} Qxd3 {[%emt 0:00:48][%cal Of6g4]} 19. Rd1 {[%emt 0:00:33]} Qc4 {[%emt 0:00:18]} 20. Bh6 {[%emt 0:00:20][%csl Gh6][%cal Rg3g7]} g6 {[%emt 0:00:22]} 21. Rdf1 {[%emt 0:00:26]} Qe6 {[%emt 0:02:05]} (21... Bc5+ $1 $17 22. Kh1 Nh5 $1 {[%mdl 512]}) 22. Kh1 {[%emt 0:01:18] White is more active.} (22. Rxe5 $14 Qd7 23. Ref5) 22... Kh8 {[%emt 0:00:53]} (22... Bd8 $15) 23. Rxe5 $14 {[%emt 0:02:00]} Qc4 {[%emt 0:00:25][%cal Rc4f1]} 24. Ref5 {[%emt 0:00:53]} Nh5 {[%emt 0:01:35]} 25. Qe5+ {[%emt 0:00:12]} Bf6 {[%emt 0:00:47]} 26. Qc5 {[%emt 0:01:23]} Qxc5 {[%emt 0:01:18]} 27. Rxc5 {[%emt 0:00:02] Black should prevent g4.} Bxc3 {[%emt 0:00:08]} 28. Rxc3 {[%emt 0:00:01]} Rxe4 {[%emt 0:00:34]} 29. h3 {[%emt 0:00:02]} Re7 {[%emt 0:01:08]} 30. Rfc1 {[%emt 0:00:32]} Rae8 {[%emt 0:00:22]} 31. Rc7 {[%emt 0:00:20] aiming for Rxe7.} Ng3+ {[%emt 0:00:10]} 32. Kh2 {[%emt 0:00:05] Intending Rxe7 and mate.} Nf5 {[%emt 0:00:17]} 33. Rxe7 {[%emt 0:00:08]} Nxe7 $11 {[%emt 0:00:02][%mdl 4096] Endgame KRB-KRN} 34. Rc7 {[%emt 0:00:18]} Nf5 {[%emt 0:00:18]} 35. Bg5 {[%emt 0:00:02]} Nd6 {[%emt 0:00:12]} 36. Rd7 {[%emt 0:00:44]} Ne4 {[%emt 0:00:06]} 37. Bh6 {[%emt 0:00:20]} f5 {[%emt 0:00:20]} ({Better is} 37... Kg8 $14) 38. Rxb7 $18 {[%emt 0:00:29]} Nd6 {[%emt 0:00:05]} 39. Rd7 {[%emt 0:00:09]} (39. Ra7 $18) 39... Nc4 {[%emt 0:00:06]} 40. b3 {[%emt 0:00:18]} Ne3 {[%emt 0:00:12]} (40... Ne5 $142 41. Ra7 Kg8 42. Rxa6 Nf7) 41. Ra7 {[%emt 0:00:14]} Nf1+ {[%emt 0:00:12]} 42. Kg1 {[%emt 0:00:01]} Ng3 {[%emt 0:00:14]} 43. Rxa6 {[%emt 0:00:08]} f4 {[%emt 0:00:03] [#] ( -> ...Re1+)} 44. Kf2 {[%emt 0:00:55] Prevents Re1.} Ne4+ {[%emt 0:00:20]} 45. Kf3 {[%emt 0:00:08]} g5 {[%emt 0:00:02]} 46. Ra4 {[%emt 0:00:14]} Re6 {[%emt 0:00:19]} (46... Nc3 $18) 47. Ra8+ {[%emt 0:00:03] Weighted Error Value: White=0.23 (precise) /Black=0.48} 1-0

[Event "Szansa Chess Open 2022"]
[Site "Warsaw"]
[Date "2022.09.18"]
[Round "11.11"]
[White "Derylo, Kamil"]
[Black "Jarzebowski, Kacper"]
[Result "1-0"]
[ECO "A45"]
[WhiteElo "2143"]
[BlackElo "2106"]
[Annotator "TA"]
[PlyCount "95"]
[EventDate "2022.09.17"]
[EventCountry "POL"]
[SourceTitle "playchess.com"]
[Source "ChessBase"]
[SourceQuality "1"]
[TimeControl "900+10"]

{[%evp 9,95,6,0,0,5,10,12,19,104,102,113,103,92,92,87,64,73,70,92,95,105,97,136,96,107,102,108,112,108,109,106,99,125,125,150,161,151,128,137,8,12,16,12,0,-5,-37,227,0,280,280,273,176,224,220,216,200,151,64,60,16,33,12,13,-13,-20,-47,0,-38,0,-1,-4,-14,-7,-8,0,0,4,8,11,8,8,15,78,25,326,207,165,171]} 1. d4 {[%emt 0:00:01]} Nf6 {[%emt 0:00:01]} 2. Bg5 {[%emt 0:00:02]} Ne4 {[%emt 0:00:07]} 3. h4 {[%emt 0:00:01][%cal Bh2h4,Bh4g5,Bg5h6][%mdl 32]} c5 {[%emt 0:00:13]} 4. d5 {[%emt 0:00:02]} g6 {[%emt 0:00:02]} 5. Nd2 {[%emt 0:00:23]} Nxg5 {[%emt 0:00:02]} 6. hxg5 {[%emt 0:00:02] A45: Trompowsky Attack.} Bg7 {[%emt 0:00:01]} 7. c3 {[%emt 0:00:03][%cal Od5d6]} d6 {[%emt 0:00:01]} 8. Ngf3 {[%emt 0:00:28] The position is equal.} O-O {[%emt 0:00:09]} (8... h6 $11) 9. Qa4 $16 {[%emt 0:00:43] [#]} e5 $146 {[%emt 0:01:05]} ({Predecessor:} 9... f5 10. Qh4 Kf7 11. e4 e6 12. Bd3 exd5 13. exf5 Qe8+ 14. Kf1 Bxf5 15. Bxf5 gxf5 16. Re1 Qb5+ 17. c4 Qd7 18. Qh5+ Kg8 19. Qxh7+ Kf7 20. Rh6 {1-0 (20) Rodriguez Gonzalez,J (2261)-Darrigues,A (1991) San Sebastian 2007}) 10. Qh4 {[%emt 0:00:37][%csl Gh1][%cal Rh4h7] White is much more active.} (10. e3 {is interesting.} Bf5 11. Qh4 h5 12. gxh6 Bf6 13. Qg3) 10... h5 {[%emt 0:00:06]} 11. gxh6 {[%emt 0:00:18]} Qxh4 {[%emt 0:00:03][%mdl 64] Remove Defender} 12. Rxh4 {[%emt 0:00:07]} Bf6 {[%emt 0:00:01]} 13. Rh1 {[%emt 0:00:18]} Bf5 {[%emt 0:00:10]} 14. e4 {[%emt 0:00:41]} Bd7 {[%emt 0:00:34]} 15. a4 $36 {[%emt 0:00:34][%mdl 2048] Keeping Black busy.} Na6 {[%emt 0:00:08]} 16. Bd3 {[%emt 0:01:21]} Nc7 {[%emt 0:00:09]} 17. Ke2 {[%emt 0:00:13]} Kh7 {[%emt 0:00:11]} 18. Nc4 {[%emt 0:01:42] Pair of Knights!} Be7 {[%emt 0:00:14] [#]} 19. Nfxe5 $1 {[%emt 0:01:24][%mdl 512]} dxe5 {[%emt 0:01:55]} 20. d6 {[%emt 0:00:02]} Bxd6 {[%emt 0:01:47]} 21. Nxd6 {[%emt 0:00:03]} Bc6 {[%emt 0:00:27]} 22. Bc4 {[%emt 0:02:11]} f6 {[%emt 0:00:01]} 23. f3 {[%emt 0:01:01]} a6 {[%emt 0:00:57]} 24. b4 {[%emt 0:01:53]} (24. Rhd1 $16) 24... b5 $11 {[%emt 0:00:38]} 25. axb5 {[%emt 0:01:29]} axb5 {[%emt 0:00:01] And now ...cxb4 would win.} 26. Bd5 {[%emt 0:00:42]} Bxd5 {[%emt 0:02:42]} 27. exd5 {[%emt 0:00:06]} c4 {[%emt 0:00:01][%mdl 8192]} (27... cxb4 $1 $15 {keeps the upper hand.} 28. cxb4 (28. Rxa8 Rxa8 29. cxb4 Ra2+ 30. Kd3 Rxg2 $17) 28... Rxa1 29. Rxa1 Nxd5) 28. Rhd1 $2 {[%emt 0:01:28]} (28. Rxa8 $1 $18 Rxa8 29. Rd1) 28... Kxh6 $2 {[%emt 0:02:15][%mdl 8192]} (28... Rxa1 $11 {and Black is okay.} 29. Rxa1 Nxd5) 29. Rxa8 $18 {[%emt 0:00:11]} Rxa8 $11 {[%emt 0:00:30][%mdl 4096] Endgame KRN-KRN} 30. Ne4 {[%emt 0:00:01]} Kg7 {[%emt 0:02:36]} 31. Nc5 $1 {[%emt 0:00:24] Black must now prevent d6.} Kf7 {[%emt 0:01:21]} 32. d6 {[%emt 0:00:56]} Ne6 {[%emt 0:00:00] [#]} 33. d7 {[%emt 0:00:27]} ({White should play} 33. Ke3 $1 $16) 33... Nf4+ $14 {[%emt 0:00:57]} 34. Kf1 {[%emt 0:00:14]} Ke7 {[%emt 0:00:50]} 35. Nb7 {[%emt 0:00:13]} Ne6 {Against d8R} 36. Nc5 {[%emt 0:00:37]} Rd8 {[%emt 0:00:36] ...Nxc5 is the strong threat.} 37. Rd5 {[%emt 0:00:06]} ({Of course not} 37. Nxe6 Kxe6 38. Ra1 Rxd7 $17) 37... Nf4 {[%emt 0:00:13]} (37... Nxc5 $15 38. Rxc5 Rxd7) 38. Rd2 {[%emt 0:00:06]} Nd3 {[%emt 0:00:09]} (38... f5 $5 {[%cal Rf4d3]}) 39. Nxd3 {[%emt 0:00:15]} Rxd7 {[%emt 0:00:07][%mdl 64] Pin} 40. Ke2 {[%emt 0:00:01]} cxd3+ {[%emt 0:00:07]} 41. Rxd3 $11 {[%emt 0:00:01] KR-KR} Rc7 {[%emt 0:00:17]} 42. Kd2 {[%emt 0:00:08]} Ke6 {[%emt 0:00:10]} 43. Rd8 {[%emt 0:00:09]} Kf5 {[%emt 0:00:15]} 44. Rb8 {[%emt 0:00:14]} Rd7+ $1 {[%emt 0:00:01]} 45. Ke2 {[%emt 0:00:02]} Rd5 {[%emt 0:00:02] [#]} (45... Rc7 $11) 46. Rb6 {[%emt 0:00:05]} (46. Ke3 $1 $16) 46... g5 $2 {[%emt 0:00:23][%mdl 8192]} (46... Kg5 $11) 47. Rc6 {[%emt 0:00:01]} g4 {[%emt 0:00:13]} 48. fxg4+ {[%emt 0:00:00] Weighted Error Value: White=0.27 (precise) /Black=0.41} 1-0

[Event "Szansa Chess Open 2022"]
[Site "Warsaw"]
[Date "2022.09.18"]
[Round "11.12"]
[White "Janeczko, Jakub"]
[Black "Kulesza, Andrzej"]
[Result "1-0"]
[ECO "B20"]
[WhiteElo "2159"]
[BlackElo "2014"]
[Annotator "TA"]
[PlyCount "137"]
[EventDate "2022.09.17"]
[EventCountry "POL"]
[SourceTitle "playchess.com"]
[Source "ChessBase"]
[SourceQuality "1"]
[TimeControl "900+10"]

{[%evp 14,137,15,12,16,4,17,20,17,16,60,27,51,49,60,62,62,34,52,-16,31,-82,-47,-79,5,-46,-37,-61,-60,-47,-52,-57,0,0,29,0,239,0,0,0,247,236,218,214,177,124,137,0,165,197,302,269,479,467,485,393,422,0,481,461,438,323,763,766,833,834,2184,1193,2171,2160,2953,2714,2152,1364,1323,1321,1337,1342,1283,1276,6614,6383,8272,6427,29974,29975,29989,29990,29992,29993,29996,29993,29993,29988,29992,29976,29976,29977,29977,29978,29978,29978,29978,29979,29982,29983,29983,29984,29984,29984,29983,29984,29984,29985,29985,29986,29986,29987,29987,29987,29987,29988,29988,29989,29990,29990]} 1. e4 {[%emt 0:00:02]} c5 {[%emt 0:00:01]} 2. d3 {[%emt 0:00:02]} Nc6 {[%emt 0:00:03]} 3. g3 {[%emt 0:00:01]} g6 {[%emt 0:00:02]} 4. Bg2 {[%emt 0:00:01]} Bg7 {[%emt 0:00:01]} 5. f4 {[%emt 0:00:01]} e6 {[%emt 0:00:05]} 6. Nf3 {[%emt 0:00:02]} Nge7 {[%emt 0:00:03]} 7. O-O {[%emt 0:00:03]} d5 {[%emt 0:00:02]} 8. c3 {[%emt 0:00:01]} b6 {[%emt 0:00:21] B20: Sicilian: Unusual White 2nd moves.} 9. e5 {[%emt 0:00:07]} Ba6 {[%emt 0:00:28]} 10. Na3 {[%emt 0:00:04]} Qd7 {[%emt 0:00:17] The position is equal.} 11. Nc2 {[%emt 0:00:02]} Rd8 {[%emt 0:00:14]} 12. Re1 {[%emt 0:01:44]} d4 {[%emt 0:00:02]} 13. c4 {[%emt 0:00:02] [#]} Bb7 $146 {[%emt 0:00:02]} ({Predecessor:} 13... Nf5 14. b3 Bb7 15. g4 Ne3 16. Bxe3 dxe3 17. Rxe3 h5 18. g5 h4 19. Bh3 Ba8 {1-0 (52) Morovic Fernandez,I (2565)-Ricardi,P (2465) Buenos Aires 1992}) 14. Bd2 {[%emt 0:00:39]} O-O {[%emt 0:00:07]} 15. Re2 {[%emt 0:00:07]} Rde8 {[%emt 0:00:08]} 16. Be1 {[%emt 0:00:06]} (16. b4 $14) 16... h5 {[%emt 0:00:25]} (16... Nf5 $11 {was preferrable.}) 17. h3 {[%emt 0:00:06] [#]} (17. b4 $14 {stays ahead.}) 17... f6 $1 $17 {[%emt 0:00:19]} 18. exf6 {[%emt 0:00:03]} Rxf6 {[%emt 0:00:04]} (18... Bxf6 $17 19. Bd2 Nf5) 19. Bf2 {[%emt 0:00:17]} (19. b4 $11) 19... Nf5 {[%emt 0:00:12][%cal Oe6e5]} (19... Rf5 $5 {[%cal Re6e5]}) 20. g4 {[%emt 0:00:25]} hxg4 {[%emt 0:00:16]} 21. hxg4 {[%emt 0:00:03]} Nfe7 {[%emt 0:00:08]} 22. Bg3 {[%emt 0:00:04]} Ref8 {[%emt 0:00:20]} ({Black should play} 22... Rff8 $1 $15) 23. Qd2 {[%emt 0:00:02]} R6f7 {[%emt 0:00:29][%cal Oe6e5]} 24. Ng5 {[%emt 0:00:04][%csl LRe6,LRf7]} Rf6 {[%emt 0:00:02]} (24... e5 $1 $11 25. Nxf7 Rxf7) 25. Ne4 {[%emt 0:00:02]} R6f7 {[%emt 0:00:02]} 26. Ng5 $1 $36 {[%emt 0:01:10][%csl LRe6,LRf7][%mdl 2048] White has good play.} Rf6 {[%emt 0:00:04] [#]} 27. Rae1 $1 {[%emt 0:00:11][%cal Rg5e6]} Nd8 {[%emt 0:00:40]} 28. Bxb7 {[%emt 0:00:26]} Qxb7 {[%emt 0:00:06]} 29. Ne4 {[%emt 0:00:02]} (29. Rh2 $18) 29... R6f7 $16 {[%emt 0:00:11]} 30. Ng5 {[%emt 0:01:33][%csl LRe6,LRf7] White is more active.} Rf6 {[%emt 0:00:04] White stays focused until the end.} 31. Rh2 {[%emt 0:00:14] Inhibits Bh6.} Qc7 {[%emt 0:00:43]} (31... b5 $142 32. cxb5 Nd5) 32. Qg2 $18 {[%emt 0:01:01] And now Qh3 would win.} Re8 $2 {[%emt 0:01:32]} (32... Rxf4 {is a better defense.} 33. Qh3 R8f6) 33. Qh3 {[%emt 0:02:13]} Qd7 {[%emt 0:02:00]} 34. Qh7+ {[%emt 0:01:40]} (34. Qh4 Rf7 35. b4 Bf6 $18) 34... Kf8 {[%emt 0:00:02]} 35. Qh3 {[%emt 0:02:13]} Kg8 $1 {[%emt 0:00:18]} 36. Ne4 {[%emt 0:00:09]} (36. Qh4 Rf7 37. b4 Bf6 $18) 36... Rf7 {[%emt 0:00:05]} 37. Bh4 {[%emt 0:01:29]} Rxf4 $2 {[%emt 0:00:28] [#]} (37... Kf8 38. Ng5 Nec6) 38. Nf6+ $1 {[%emt 0:00:41][%mdl 512]} Rxf6 {[%emt 0:03:52]} (38... Bxf6 39. Bxf6) 39. Bxf6 {[%emt 0:00:03] Threatening mate with Qh7+.} Bxf6 {[%emt 0:00:34]} 40. Qh7+ {[%emt 0:00:01]} (40. g5 $2 Bg7 41. Rf1 Nf7 42. Qh7+ (42. Qh4 $2 Kf8 $19) 42... Kf8 $19) 40... Kf8 {[%emt 0:00:01]} 41. Rf1 {[%emt 0:00:02]} Nf7 {[%emt 0:01:12]} 42. Rxf6 {[%emt 0:00:07][%csl Gh7][%cal Rf6f7]} Ng8 {[%emt 0:00:15]} 43. Rxg6 {[%emt 0:00:05] White threatens Rf2 and mate.} Ke7 {[%emt 0:00:01]} 44. Rxg8 {[%emt 0:00:10] Intending Rf2 and mate.} Rxg8 {[%emt 0:00:02]} 45. Qxg8 {[%emt 0:00:02]} Qd6 {[%emt 0:00:01]} 46. Qh7 {[%emt 0:00:14] Threatens to win with Rf2.} ({Inferior is} 46. Rh7 Qg3+ 47. Kf1 (47. Kh1 Qf3+ 48. Kh2 Qf2+ 49. Kh3 Qf3+ 50. Kh4 Qh1+ 51. Kg3 Qg1+ 52. Kf3 Qf1+ 53. Kg3 Qg1+ 54. Kh3 Qh1+ 55. Kg3 Qg1+ $11) 47... Qxd3+ 48. Ke1 Qg3+ 49. Kf1 (49. Kd1 Qf3+ 50. Ke1 Qg3+ 51. Kd2 Qg2+ 52. Kd3 Qf3+ 53. Kd2 Qg2+ 54. Ke1 Qg3+ $11) 49... Qf3+ 50. Kg1 Qg3+ 51. Kh1 Qf3+ 52. Kh2 Qf2+ 53. Kh3 Qf3+ 54. Kh4 Qh1+ 55. Kg3 Qg1+ 56. Kf3 Qf1+ 57. Ke4 Qe2+ 58. Kf4 Qf1+ 59. Kg3 Qg1+ 60. Kh3 Qh1+ 61. Kg3 Qg1+ $11) 46... Qg3+ {[%emt 0:00:04]} 47. Rg2 {[%emt 0:00:03][%cal Bh2g2,Bg2f2,Bf2f7][%mdl 32]} Qf4 {[%emt 0:00:29]} 48. Rf2 {[%emt 0:00:11]} Qxg4+ {[%emt 0:00:11]} 49. Kf1 {[%emt 0:00:23] White mates.} Kd6 {[%emt 0:00:13]} 50. Rxf7 {[%emt 0:00:14]} Qg3 {[%emt 0:00:19]} 51. Ne1 {[%emt 0:01:11]} a5 {[%emt 0:00:22]} 52. a4 {[%emt 0:00:03]} Qe5 {[%emt 0:00:21]} 53. Rd7+ {[%emt 0:00:40]} Kc6 {[%emt 0:00:02]} 54. Qe4+ {[%emt 0:00:12]} Qxe4 {[%emt 0:00:09]} 55. dxe4 {[%emt 0:00:02]} Kxd7 {[%emt 0:00:01] KN-KP} 56. Ke2 {[%emt 0:00:02]} Ke7 {[%emt 0:00:06]} 57. Kf3 {[%emt 0:00:02]} Kf6 {[%emt 0:00:01]} 58. Kf4 {[%emt 0:00:01]} e5+ {[%emt 0:00:18]} 59. Kg4 {[%emt 0:00:01]} Kg6 {[%emt 0:00:02]} 60. Nd3 {[%emt 0:00:02]} Kf6 {[%emt 0:00:01]} 61. Kh5 {[%emt 0:00:01]} Ke6 {[%emt 0:00:07]} 62. Kg6 {[%emt 0:00:02]} b5 {[%emt 0:00:17]} 63. axb5 {[%emt 0:00:03]} a4 {[%emt 0:00:01]} 64. Ne1 {[%emt 0:00:02]} Ke7 {[%emt 0:00:10]} 65. Kf5 {[%emt 0:00:02]} Kd6 {[%emt 0:00:01]} 66. Kf6 {[%emt 0:00:01]} Kc7 {[%emt 0:00:01]} 67. Kxe5 {[%emt 0:00:02]} Kb6 {[%emt 0:00:00]} 68. Kd6 {[%emt 0:00:15]} Ka5 {[%emt 0:00:01]} 69. Nd3 {[%emt 0:00:02] Weighted Error Value: White=0.65/Black=0.59} 1-0

[Event "Szansa Chess Open 2022"]
[Site "Warsaw"]
[Date "2022.09.18"]
[Round "11.13"]
[White "Fiszer, Bartosz"]
[Black "Khamidov, Abdulla"]
[Result "1-0"]
[ECO "B39"]
[WhiteElo "2232"]
[BlackElo "1804"]
[Annotator "TA"]
[PlyCount "129"]
[EventDate "2022.09.17"]
[EventCountry "POL"]
[SourceTitle "playchess.com"]
[Source "ChessBase"]
[SourceQuality "1"]
[TimeControl "900+10"]

{[%evp 18,129,56,18,53,11,58,6,48,20,62,45,40,28,54,44,62,-19,8,12,9,10,9,14,26,0,0,0,0,0,0,0,0,0,10,8,12,8,14,7,10,0,19,21,26,0,10,0,8,0,5,0,12,-19,28,28,64,31,54,37,83,95,70,5,70,70,70,70,72,72,84,73,108,85,216,200,279,277,277,271,277,276,491,476,474,470,560,556,538,527,735,738,2430,2415,7626,10081,29977,29977,29982,29983,29983,29984,29984,29985,29988,29989,29989,29990,29990,29983,29983,29984,29984,29985]} 1. e4 {[%emt 0:00:01]} c5 {[%emt 0:00:01]} 2. Nf3 {[%emt 0:00:01]} Nc6 {[%emt 0:00:02]} 3. d4 {[%emt 0:00:01]} cxd4 {[%emt 0:00:02]} 4. Nxd4 {[%emt 0:00:02]} g6 {[%emt 0:00:02]} 5. c4 {[%emt 0:00:02]} Bg7 {[%emt 0:00:01]} 6. Be3 {[%emt 0:00:01]} Nf6 {[%emt 0:00:01]} 7. Nc3 {[%emt 0:00:02]} Ng4 {[%emt 0:00:02]} 8. Qxg4 {[%emt 0:00:06]} Nxd4 {[%emt 0:00:02]} 9. Qd1 {[%emt 0:00:03]} Nc6 {[%emt 0:00:07]} 10. Be2 {[%emt 0:00:21]} O-O {[%emt 0:00:03] B39: Sicilian: Maroczy Bind with 5...Bg7 and 7...Ng4.} 11. O-O {[%emt 0:00:04]} d6 (11... Bxc3 $11 12. bxc3 d6) 12. f4 {[%emt 0:00:38]} ({Better is} 12. Rc1 $14) 12... f5 {[%emt 0:00:07] The position is equal.} (12... Bxc3 $5 13. bxc3 b6 $11) 13. Qd2 {[%emt 0:00:12]} Be6 {[%emt 0:00:37]} 14. Rad1 {[%emt 0:01:27]} Qa5 {[%emt 0:00:14]} 15. exf5 {[%emt 0:00:07] [#]} Bxf5 $146 {[%emt 0:00:24]} ({Predecessor:} 15... gxf5 16. Rfe1 Rfd8 17. Bf1 Bf7 18. Bf2 Rd7 19. Qc2 e6 20. a3 Qd8 21. b4 Rc8 {1-0 (42) Almeida Junior,A (2133)-Reis,V (1753) Araruama 2021}) 16. Bf3 {[%emt 0:00:33]} Be6 {[%emt 0:00:56]} 17. Bxc6 {[%emt 0:02:13]} ({White should try} 17. Nd5 $14) 17... bxc6 {[%emt 0:00:11]} (17... Bxc3 $5 18. Qxc3 Qxc3 19. bxc3 bxc6 $11) 18. Bd4 {[%emt 0:00:02]} Bxd4+ {[%emt 0:00:26]} ({But not} 18... Bxc4 19. Bxg7 Rf7 20. Bd4 Bxf1 21. Rxf1 $16) 19. Qxd4 {[%emt 0:00:02]} Qb6 {[%emt 0:00:00]} 20. b3 {[%emt 0:00:34]} Bg4 {[%emt 0:00:28]} 21. Na4 {[%emt 0:00:38]} Qxd4+ {[%emt 0:00:04]} 22. Rxd4 {[%emt 0:00:02]} c5 {[%emt 0:00:05]} 23. Re4 {[%emt 0:00:13]} Rae8 {[%emt 0:00:08]} 24. Rfe1 {[%emt 0:00:34]} Rf7 {[%emt 0:00:03]} 25. Nc3 {[%emt 0:00:25]} Bf5 {[%emt 0:00:03]} 26. R4e3 {[%emt 0:00:06]} Bd7 {[%emt 0:00:12]} 27. Nd5 {[%emt 0:01:01][%cal Rd5e7]} Kf8 $1 {[%emt 0:00:02]} 28. g3 {[%emt 0:00:15]} Bh3 {[%emt 0:00:30]} 29. Nc3 {[%emt 0:00:42]} a6 {[%emt 0:00:14]} 30. Ne4 {[%emt 0:00:04][%cal Oe4d6] [#] aiming for Nxd6!} Bd7 {[%emt 0:00:14]} 31. h4 {[%emt 0:00:23]} h6 {[%emt 0:00:11]} 32. Nc3 {[%emt 0:00:57]} Bc6 {[%emt 0:00:05]} 33. Re6 {[%emt 0:00:04]} Rf6 {[%emt 0:00:09]} 34. R6e3 {[%emt 0:01:21]} Kf7 {[%emt 0:00:21]} 35. Nd1 {[%emt 0:00:04]} h5 {[%emt 0:00:22]} (35... g5 $142 36. fxg5 (36. hxg5 hxg5 37. fxg5 Rg6 $11) 36... hxg5) 36. Nf2 $11 {[%emt 0:00:05] Hoping for Nh3.} Rf5 {[%emt 0:00:50]} 37. Nh3 {[%emt 0:00:05] And now Ng5+ would win.} e5 {[%emt 0:00:43]} 38. Rd3 {[%emt 0:01:06]} exf4 {[%emt 0:00:25]} (38... Ke7 $1 $14) 39. Rxe8 $16 {[%emt 0:00:04]} Bxe8 {[%emt 0:00:02]} 40. Nxf4 $14 {[%emt 0:00:37][%mdl 4096] Endgame KRB-KRN} (40. Rxd6 $14 Rf6 41. Rxf6+ Kxf6 42. Nxf4) 40... g5 {[%emt 0:00:29]} (40... Ke7 $1 $11) 41. hxg5 {[%emt 0:00:25]} ({Reject} 41. Nxh5 gxh4 42. g4 Rg5 43. Rxd6 Rxg4+ 44. Kf2 h3 $11) 41... Rxg5 {[%emt 0:00:01]} 42. Rxd6 {[%emt 0:00:54]} Rxg3+ {[%emt 0:00:01]} 43. Kf2 {[%emt 0:00:47]} Rg4 {[%emt 0:00:16]} 44. Nxh5 {[%emt 0:00:42] White is more active.} Ke7 {[%emt 0:00:02]} 45. Rd5 {[%emt 0:00:05] [#] Re5+ is the strong threat.} Bc6 {[%emt 0:00:15] This move loses the game for Black.} (45... Rh4 $16 {was necessary.}) 46. Rxc5 $18 {[%emt 0:00:07]} Kd6 {[%emt 0:00:04]} 47. Ra5 {[%emt 0:00:04]} Rg2+ {[%emt 0:00:05]} 48. Ke3 {[%emt 0:00:04]} Rh2 {[%emt 0:00:04]} 49. Nf4 {[%emt 0:00:03]} Kc7 $2 {[%emt 0:00:15]} (49... Bb7 50. Kd4 Rf2) 50. Rxa6 {[%emt 0:00:11]} Kb7 {[%emt 0:00:01]} 51. Ra5 {[%emt 0:00:01]} Kb6 {[%emt 0:00:01]} 52. b4 {[%emt 0:00:02][%cal Bb3b4,Bb4b5,Bb5b6][%mdl 32]} Rb2 {[%emt 0:00:02]} 53. a3 {[%emt 0:00:04]} Rb3+ {[%emt 0:00:03]} 54. Kd4 {[%emt 0:00:02]} Rf3 {[%emt 0:00:01]} 55. Nd5+ {[%emt 0:00:03]} Kb7 {[%emt 0:00:01]} 56. b5 {[%emt 0:00:13]} Be8 {[%emt 0:00:02]} 57. b6 {[%emt 0:00:07] White mates.} Bc6 {[%emt 0:00:10]} 58. Ra7+ {[%emt 0:00:06]} Kb8 {[%emt 0:00:01]} 59. a4 {[%emt 0:00:22][%cal Ba3a4,Ba4a5,Ba5a6,Ba6b7][%mdl 32]} Rb3 {[%emt 0:00:05]} 60. a5 {[%emt 0:00:02]} Rb1 {[%emt 0:00:07]} 61. Kc5 {[%emt 0:01:17]} Bb7 {[%emt 0:00:10]} 62. a6 {[%emt 0:00:13]} Bxd5 {[%emt 0:00:11]} 63. Kxd5 {[%emt 0:00:03]} Rxb6 {[%emt 0:00:02]} 64. Rb7+ $1 {[%emt 0:00:02]} Rxb7 {[%emt 0:00:02]} 65. axb7 {[%emt 0:00:01] Weighted Error Value: White=0.16 (very precise) /Black=0.38} 1-0